[Event "Titled Tuesday Blitz November 29 Early 2022"]
[White "Buscar, Michael"]
[Black "Hartikainen, Jarmo"]
[WhiteFideId "2603616"]
[BlackFideId "503134"]
[WhiteElo "2010"]
[BlackElo "2217"]
[Result "1-0"]
[Round "05"]
[TimeControl "180+1"]
[Date "2022.11.30"]
[WhiteClock "0:00:49"]
[BlackClock "0:00:11"]

1. Nf3 {[%clk 0:02:59]}  Nf6 {[%clk 0:02:59]} 2. c4 {[%clk 0:02:59]}  g6 {[%clk 0:02:58]} 3. b3 {[%clk 0:02:59]}  Bg7 {[%clk 0:02:58]} 4. Bb2 {[%clk 0:03:00]}  O-O {[%clk 0:02:56]} 5. e3 {[%clk 0:03:00]}  d5 {[%clk 0:02:55]} 6. d4 {[%clk 0:02:59]}  c6 {[%clk 0:02:46]} 7. Be2 {[%clk 0:02:59]}  Ne4 {[%clk 0:02:36]} 8. O-O {[%clk 0:02:56]}  Nd7 {[%clk 0:02:28]} 9. Nbd2 {[%clk 0:02:52]}  Nxd2 {[%clk 0:02:26]} 10. Qxd2 {[%clk 0:02:50]}  Nf6 {[%clk 0:02:22]} 11. Rac1 {[%clk 0:02:39]}  Ne4 {[%clk 0:02:16]} 12. Qc2 {[%clk 0:02:36]}  Bf5 {[%clk 0:02:10]} 13. Bd3 {[%clk 0:02:34]}  Nd6 {[%clk 0:01:55]} 14. cxd5 {[%clk 0:02:25]}  cxd5 {[%clk 0:01:54]} 15. Bxf5 {[%clk 0:02:22]}  Nxf5 {[%clk 0:01:54]} 16. Qc7 {[%clk 0:02:22]}  b5 {[%clk 0:01:28]} 17. Ba3 {[%clk 0:02:19]}  a5 {[%clk 0:01:22]} 18. Qxd8 {[%clk 0:01:51]}  Rfxd8 {[%clk 0:01:19]} 19. Bc5 {[%clk 0:01:51]}  a4 {[%clk 0:00:55]} 20. g4 {[%clk 0:01:43]}  Nd6 {[%clk 0:00:25]} 21. Bxd6 {[%clk 0:01:41]}  Rxd6 {[%clk 0:00:25]} 22. b4 {[%clk 0:01:38]}  a3 {[%clk 0:00:24]} 23. Rc5 {[%clk 0:01:37]}  Rb8 {[%clk 0:00:21]} 24. Rfc1 {[%clk 0:01:36]}  Bf8 {[%clk 0:00:21]} 25. Rc8 {[%clk 0:01:25]}  Rxc8 {[%clk 0:00:20]} 26. Rxc8 {[%clk 0:01:24]}  e6 {[%clk 0:00:18]} 27. Ne5 {[%clk 0:01:25]}  Kg7 {[%clk 0:00:17]} 28. Rc7 {[%clk 0:01:21]}  Ra6 {[%clk 0:00:16]} 29. Rxf7+ {[%clk 0:01:20]}  Kg8 {[%clk 0:00:17]} 30. Rb7 {[%clk 0:01:18]}  Bxb4 {[%clk 0:00:15]} 31. Rxb5 {[%clk 0:01:16]}  Bd6 {[%clk 0:00:15]} 32. Nd3 {[%clk 0:01:10]}  h6 {[%clk 0:00:15]} 33. Kg2 {[%clk 0:01:10]}  Kg7 {[%clk 0:00:15]} 34. Rb7+ {[%clk 0:01:08]}  Kf6 {[%clk 0:00:15]} 35. h4 {[%clk 0:01:06]}  Rc6 {[%clk 0:00:15]} 36. Rh7 {[%clk 0:00:57]}  Rc2 {[%clk 0:00:14]} 37. Rxh6 {[%clk 0:00:54]}  Rxa2 {[%clk 0:00:14]} 38. Rh7 {[%clk 0:00:53]}  Be7 {[%clk 0:00:12]} 39. g5+ {[%clk 0:00:53]}  Kf5 {[%clk 0:00:12]} 40. Rxe7 {[%clk 0:00:53]}  Ke4 {[%clk 0:00:13]} 41. Nc5+ {[%clk 0:00:51]}  Kf5 {[%clk 0:00:11]} 42. Kf3 {[%clk 0:00:49]}  Ra1 {[%clk 0:00:11]} 43. Rf7# {[%clk 0:00:49]} 1-0


[Site "https://www.chess.com"]

[Event "Titled Tuesday Blitz November 29 Early 2022"]
[White "Costachi, Mihnea"]
[Black "Aarav Dengla"]
[WhiteFideId "1217518"]
[BlackFideId "45059756"]
[WhiteElo "2424"]
[BlackElo "2261"]
[Result "1-0"]
[Round "05"]
[TimeControl "180+1"]
[Date "2022.11.30"]
[WhiteClock "0:00:33"]
[BlackClock "0:00:02"]

1. d4 {[%clk 0:03:00]}  d5 {[%clk 0:02:51]} 2. Nf3 {[%clk 0:02:59]}  e6 {[%clk 0:02:45]} 3. g3 {[%clk 0:02:58]}  c5 {[%clk 0:02:41]} 4. Bg2 {[%clk 0:02:59]}  Nc6 {[%clk 0:02:32]} 5. O-O {[%clk 0:03:00]}  Nf6 {[%clk 0:02:26]} 6. c4 {[%clk 0:03:00]}  dxc4 {[%clk 0:02:24]} 7. Qa4 {[%clk 0:02:54]}  cxd4 {[%clk 0:02:19]} 8. Nxd4 {[%clk 0:02:47]}  Qxd4 {[%clk 0:02:16]} 9. Bxc6+ {[%clk 0:02:47]}  Bd7 {[%clk 0:02:12]} 10. Rd1 {[%clk 0:02:36]}  Bxc6 {[%clk 0:01:39]} 11. Qxc6+ {[%clk 0:02:36]}  bxc6 {[%clk 0:01:37]} 12. Rxd4 {[%clk 0:02:37]}  c5 {[%clk 0:01:34]} 13. Rxc4 {[%clk 0:02:37]}  Nd5 {[%clk 0:01:33]} 14. Nc3 {[%clk 0:02:34]}  Nb6 {[%clk 0:01:31]} 15. Re4 {[%clk 0:02:32]}  O-O-O {[%clk 0:01:28]} 16. a4 {[%clk 0:02:27]}  Nd5 {[%clk 0:01:15]} 17. Bg5 {[%clk 0:02:22]}  f6 {[%clk 0:01:11]} 18. Bd2 {[%clk 0:02:22]}  e5 {[%clk 0:00:57]} 19. Nxd5 {[%clk 0:02:21]}  Rxd5 {[%clk 0:00:58]} 20. Be3 {[%clk 0:02:21]}  Be7 {[%clk 0:00:56]} 21. Rc4 {[%clk 0:02:16]}  Kd7 {[%clk 0:00:52]} 22. Rac1 {[%clk 0:02:15]}  Rb8 {[%clk 0:00:51]} 23. R1c2 {[%clk 0:02:07]}  Rb4 {[%clk 0:00:41]} 24. Kg2 {[%clk 0:01:51]}  a5 {[%clk 0:00:32]} 25. f3 {[%clk 0:01:42]}  Rxc4 {[%clk 0:00:29]} 26. Rxc4 {[%clk 0:01:42]}  Kc6 {[%clk 0:00:30]} 27. b3 {[%clk 0:01:35]}  Rd1 {[%clk 0:00:29]} 28. Bc1 {[%clk 0:01:36]}  Rd7 {[%clk 0:00:27]} 29. Kf2 {[%clk 0:01:34]}  Rb7 {[%clk 0:00:26]} 30. Rc3 {[%clk 0:01:34]}  Rd7 {[%clk 0:00:23]} 31. Ke1 {[%clk 0:01:32]}  h5 {[%clk 0:00:23]} 32. e4 {[%clk 0:01:32]}  Rb7 {[%clk 0:00:22]} 33. Bd2 {[%clk 0:01:31]}  Kb6 {[%clk 0:00:21]} 34. Be3 {[%clk 0:01:27]}  Kc6 {[%clk 0:00:21]} 35. Kd2 {[%clk 0:01:26]}  Rb4 {[%clk 0:00:21]} 36. Kc2 {[%clk 0:01:25]}  Rb7 {[%clk 0:00:21]} 37. Bd2 {[%clk 0:01:24]}  Kb6 {[%clk 0:00:18]} 38. Rd3 {[%clk 0:01:23]}  Ka6 {[%clk 0:00:17]} 39. Kc3 {[%clk 0:01:22]}  Rc7 {[%clk 0:00:16]} 40. Kc4 {[%clk 0:01:22]}  Rb7 {[%clk 0:00:16]} 41. Rd5 {[%clk 0:01:19]}  Rc7 {[%clk 0:00:15]} 42. h4 {[%clk 0:01:19]}  Rb7 {[%clk 0:00:15]} 43. g4 {[%clk 0:01:20]}  g6 {[%clk 0:00:14]} 44. Be3 {[%clk 0:01:03]}  Rb4+ {[%clk 0:00:08]} 45. Kc3 {[%clk 0:01:03]}  Rb7 {[%clk 0:00:09]} 46. gxh5 {[%clk 0:01:00]}  gxh5 {[%clk 0:00:08]} 47. Bxc5 {[%clk 0:00:52]}  Rc7 {[%clk 0:00:06]} 48. b4 {[%clk 0:00:52]}  axb4+ {[%clk 0:00:05]} 49. Kxb4 {[%clk 0:00:53]}  Rb7+ {[%clk 0:00:06]} 50. Ka3 {[%clk 0:00:49]}  Bxc5+ {[%clk 0:00:05]} 51. Rxc5 {[%clk 0:00:50]}  Rb6 {[%clk 0:00:05]} 52. Rd5 {[%clk 0:00:47]}  Rc6 {[%clk 0:00:06]} 53. Kb4 {[%clk 0:00:46]}  Re6 {[%clk 0:00:05]} 54. a5 {[%clk 0:00:46]}  Rc6 {[%clk 0:00:05]} 55. Rc5 {[%clk 0:00:46]}  Rd6 {[%clk 0:00:05]} 56. Kc4 {[%clk 0:00:46]}  Rd4+ {[%clk 0:00:05]} 57. Kc3 {[%clk 0:00:47]}  Rd6 {[%clk 0:00:05]} 58. Kc2 {[%clk 0:00:40]}  Re6 {[%clk 0:00:05]} 59. Rd5 {[%clk 0:00:40]}  Rc6+ {[%clk 0:00:05]} 60. Kd3 {[%clk 0:00:40]}  Re6 {[%clk 0:00:05]} 61. Ke3 {[%clk 0:00:41]}  Rc6 {[%clk 0:00:06]} 62. Kd2 {[%clk 0:00:41]}  Re6 {[%clk 0:00:05]} 63. Rc5 {[%clk 0:00:41]}  Rd6+ {[%clk 0:00:05]} 64. Ke3 {[%clk 0:00:42]}  Re6 {[%clk 0:00:05]} 65. f4 {[%clk 0:00:43]}  Ka7 {[%clk 0:00:02]} 66. Rc7+ {[%clk 0:00:34]}  Ka6 {[%clk 0:00:02]} 67. Rh7 {[%clk 0:00:35]}  Kxa5 {[%clk 0:00:01]} 68. Rxh5 {[%clk 0:00:35]}  Kb6 {[%clk 0:00:02]} 69. Rh6 {[%clk 0:00:33]} 1-0


[Site "https://www.chess.com"]

[Event "Titled Tuesday Blitz November 29 Early 2022"]
[White "D`Arruda, Ricardo D."]
[Black "Shapiro, Daniel"]
[WhiteFideId "100692"]
[BlackFideId "2001780"]
[WhiteElo "2463"]
[BlackElo "2326"]
[Result "1-0"]
[Round "05"]
[TimeControl "180+1"]
[Date "2022.11.30"]
[WhiteClock "0:01:16"]
[BlackClock "0:00:02"]

1. d4 {[%clk 0:02:53]}  Nf6 {[%clk 0:02:59]} 2. Nf3 {[%clk 0:02:52]}  b6 {[%clk 0:02:58]} 3. Nc3 {[%clk 0:02:51]}  Bb7 {[%clk 0:02:56]} 4. Bg5 {[%clk 0:02:51]}  Ne4 {[%clk 0:02:43]} 5. Nxe4 {[%clk 0:02:50]}  Bxe4 {[%clk 0:02:43]} 6. e3 {[%clk 0:02:51]}  g6 {[%clk 0:02:42]} 7. Bd3 {[%clk 0:02:47]}  Bb7 {[%clk 0:02:32]} 8. e4 {[%clk 0:02:47]}  Bg7 {[%clk 0:02:29]} 9. O-O {[%clk 0:02:45]}  O-O {[%clk 0:02:28]} 10. Qe2 {[%clk 0:02:42]}  d6 {[%clk 0:02:27]} 11. Rfe1 {[%clk 0:02:38]}  f6 {[%clk 0:02:14]} 12. Be3 {[%clk 0:02:35]}  e5 {[%clk 0:02:13]} 13. c3 {[%clk 0:02:32]}  Nc6 {[%clk 0:02:09]} 14. Qd2 {[%clk 0:02:30]}  Ne7 {[%clk 0:02:00]} 15. Bh6 {[%clk 0:02:28]}  Qd7 {[%clk 0:01:48]} 16. Bxg7 {[%clk 0:02:26]}  Kxg7 {[%clk 0:01:47]} 17. h3 {[%clk 0:02:26]}  h6 {[%clk 0:01:42]} 18. Rad1 {[%clk 0:02:23]}  Rad8 {[%clk 0:01:34]} 19. Bc4 {[%clk 0:02:18]}  Qe8 {[%clk 0:01:04]} 20. Nh2 {[%clk 0:02:07]}  h5 {[%clk 0:00:58]} 21. f4 {[%clk 0:02:01]}  Bxe4 {[%clk 0:00:39]} 22. dxe5 {[%clk 0:01:19]}  d5 {[%clk 0:00:35]} 23. exf6+ {[%clk 0:01:17]}  Kxf6 {[%clk 0:00:02]} 24. Qd4+ {[%clk 0:01:16]} 1-0


[Site "https://www.chess.com"]

[Event "Titled Tuesday Blitz November 29 Early 2022"]
[White "Danielyan, Vahe"]
[Black "Gadimbayli, Abdulla"]
[WhiteFideId "13304828"]
[BlackFideId "13404938"]
[WhiteElo "2423"]
[BlackElo "2399"]
[Result "0-1"]
[Round "05"]
[TimeControl "180+1"]
[Date "2022.11.30"]
[WhiteClock "0:00:14"]
[BlackClock "0:00:45"]

1. Nf3 {[%clk 0:03:00]}  d5 {[%clk 0:02:57]} 2. b4 {[%clk 0:03:01]}  Nf6 {[%clk 0:02:57]} 3. Bb2 {[%clk 0:03:01]}  g6 {[%clk 0:02:57]} 4. e3 {[%clk 0:03:00]}  Bg7 {[%clk 0:02:58]} 5. a3 {[%clk 0:03:01]}  O-O {[%clk 0:02:58]} 6. Be2 {[%clk 0:03:01]}  Nbd7 {[%clk 0:02:57]} 7. O-O {[%clk 0:03:01]}  c5 {[%clk 0:02:57]} 8. d3 {[%clk 0:02:58]}  b6 {[%clk 0:02:56]} 9. Nbd2 {[%clk 0:02:57]}  Bb7 {[%clk 0:02:56]} 10. c4 {[%clk 0:02:56]}  e6 {[%clk 0:02:55]} 11. cxd5 {[%clk 0:02:55]}  exd5 {[%clk 0:02:56]} 12. Rc1 {[%clk 0:02:54]}  Re8 {[%clk 0:02:56]} 13. Qb3 {[%clk 0:02:52]}  Rb8 {[%clk 0:02:56]} 14. Qa2 {[%clk 0:02:51]}  Qe7 {[%clk 0:02:54]} 15. Qa1 {[%clk 0:02:47]}  Ba6 {[%clk 0:02:42]} 16. Nb3 {[%clk 0:02:30]}  d4 {[%clk 0:02:34]} 17. Nfxd4 {[%clk 0:01:54]}  cxd4 {[%clk 0:02:34]} 18. Nxd4 {[%clk 0:01:55]}  Ne5 {[%clk 0:02:22]} 19. b5 {[%clk 0:01:49]}  Bb7 {[%clk 0:02:22]} 20. h3 {[%clk 0:01:43]}  Nd5 {[%clk 0:02:20]} 21. Nc6 {[%clk 0:01:41]}  Nxc6 {[%clk 0:01:49]} 22. bxc6 {[%clk 0:01:40]}  Bxb2 {[%clk 0:01:48]} 23. Qxb2 {[%clk 0:01:41]}  Ba6 {[%clk 0:01:48]} 24. Rfd1 {[%clk 0:01:40]}  Nxe3 {[%clk 0:01:19]} 25. fxe3 {[%clk 0:01:33]}  Qxe3+ {[%clk 0:01:20]} 26. Kf1 {[%clk 0:01:33]}  Re6 {[%clk 0:01:20]} 27. c7 {[%clk 0:01:13]}  Rbe8 {[%clk 0:01:12]} 28. Bf3 {[%clk 0:00:49]}  Bxd3+ {[%clk 0:01:09]} 29. Rxd3 {[%clk 0:00:50]}  Qxd3+ {[%clk 0:01:10]} 30. Kg1 {[%clk 0:00:51]}  Re1+ {[%clk 0:00:54]} 31. Rxe1 {[%clk 0:00:22]}  Rxe1+ {[%clk 0:00:55]} 32. Kf2 {[%clk 0:00:23]}  Rf1+ {[%clk 0:00:54]} 33. Kg3 {[%clk 0:00:20]}  Qd6+ {[%clk 0:00:55]} 34. Kg4 {[%clk 0:00:17]}  Qxc7 {[%clk 0:00:48]} 35. Qe2 {[%clk 0:00:17]}  Rc1 {[%clk 0:00:47]} 36. Bd5 {[%clk 0:00:14]}  Qd7+ {[%clk 0:00:45]} 37. Kg5 {[%clk 0:00:14]}  Qxd5+ {[%clk 0:00:45]} 38. Kh6 {[%clk 0:00:14]}  Qh5+ {[%clk 0:00:45]} 0-1


[Site "https://www.chess.com"]

[Event "Titled Tuesday Blitz November 29 Early 2022"]
[White "De Souza, Cristiano Gomes"]
[Black "Vaibhav, Suri"]
[WhiteFideId "2151758"]
[BlackFideId "5045185"]
[WhiteElo "2068"]
[BlackElo "2510"]
[Result "0-1"]
[Round "05"]
[TimeControl "180+1"]
[Date "2022.11.30"]
[WhiteClock "0:01:32"]
[BlackClock "0:01:25"]

1. d4 {[%clk 0:02:59]}  Nf6 {[%clk 0:02:56]} 2. c4 {[%clk 0:02:59]}  g6 {[%clk 0:02:56]} 3. Nc3 {[%clk 0:02:58]}  Bg7 {[%clk 0:02:57]} 4. e4 {[%clk 0:02:58]}  d6 {[%clk 0:02:58]} 5. Nf3 {[%clk 0:02:58]}  O-O {[%clk 0:02:59]} 6. Be2 {[%clk 0:02:56]}  e5 {[%clk 0:02:44]} 7. O-O {[%clk 0:02:56]}  Bg4 {[%clk 0:02:39]} 8. Be3 {[%clk 0:02:53]}  Bxf3 {[%clk 0:02:24]} 9. Bxf3 {[%clk 0:02:52]}  exd4 {[%clk 0:02:25]} 10. Bxd4 {[%clk 0:02:51]}  Nc6 {[%clk 0:02:25]} 11. Be3 {[%clk 0:02:51]}  Re8 {[%clk 0:02:23]} 12. a3 {[%clk 0:02:48]}  a5 {[%clk 0:02:18]} 13. Qc2 {[%clk 0:02:39]}  Qd7 {[%clk 0:02:10]} 14. Nd5 {[%clk 0:02:36]}  Nxd5 {[%clk 0:02:05]} 15. cxd5 {[%clk 0:02:30]}  Nd4 {[%clk 0:02:05]} 16. Bxd4 {[%clk 0:02:29]}  Bxd4 {[%clk 0:02:06]} 17. Rac1 {[%clk 0:02:24]}  Bc5 {[%clk 0:02:05]} 18. b4 {[%clk 0:02:18]}  axb4 {[%clk 0:02:03]} 19. axb4 {[%clk 0:02:17]}  Bb6 {[%clk 0:02:03]} 20. Qc3 {[%clk 0:02:13]}  Ra2 {[%clk 0:01:59]} 21. Ra1 {[%clk 0:02:11]}  Rea8 {[%clk 0:01:57]} 22. Rxa2 {[%clk 0:02:11]}  Rxa2 {[%clk 0:01:57]} 23. e5 {[%clk 0:02:02]}  dxe5 {[%clk 0:01:46]} 24. Qxe5 {[%clk 0:02:01]}  Qd6 {[%clk 0:01:46]} 25. Qe8+ {[%clk 0:01:47]}  Kg7 {[%clk 0:01:46]} 26. Qc8 {[%clk 0:01:38]}  Qxb4 {[%clk 0:01:33]} 27. d6 {[%clk 0:01:32]}  Rxf2 {[%clk 0:01:25]} 0-1


[Site "https://www.chess.com"]

[Event "Titled Tuesday Blitz November 29 Early 2022"]
[White "Deac, Bogdan-Daniel"]
[Black "Shimanov, Aleksandr"]
[WhiteFideId "1226380"]
[BlackFideId "4198603"]
[WhiteElo "3048"]
[BlackElo "2870"]
[Result "1/2-1/2"]
[Round "05"]
[TimeControl "180+1"]
[Date "2022.11.30"]
[WhiteClock "0:00:07"]
[BlackClock "0:00:02"]

1. d4 {[%clk 0:02:12]}  e6 {[%clk 0:02:59]} 2. c4 {[%clk 0:02:11]}  c5 {[%clk 0:02:59]} 3. d5 {[%clk 0:02:09]}  d6 {[%clk 0:02:59]} 4. e4 {[%clk 0:02:09]}  g6 {[%clk 0:02:59]} 5. Nc3 {[%clk 0:02:08]}  Bg7 {[%clk 0:02:59]} 6. h3 {[%clk 0:02:08]}  Bxc3+ {[%clk 0:02:58]} 7. bxc3 {[%clk 0:02:08]}  e5 {[%clk 0:02:58]} 8. a4 {[%clk 0:01:59]}  a5 {[%clk 0:02:57]} 9. Ne2 {[%clk 0:01:56]}  Qe7 {[%clk 0:02:54]} 10. Ng3 {[%clk 0:01:52]}  Nd7 {[%clk 0:02:45]} 11. Rb1 {[%clk 0:01:50]}  h5 {[%clk 0:02:40]} 12. h4 {[%clk 0:01:49]}  f6 {[%clk 0:02:38]} 13. Be2 {[%clk 0:01:47]}  Nh6 {[%clk 0:02:36]} 14. Nf1 {[%clk 0:01:13]}  Kd8 {[%clk 0:02:33]} 15. f3 {[%clk 0:00:51]}  Kc7 {[%clk 0:02:32]} 16. Be3 {[%clk 0:00:51]}  Qg7 {[%clk 0:02:27]} 17. Qd2 {[%clk 0:00:47]}  Nb6 {[%clk 0:02:19]} 18. Qb2 {[%clk 0:00:39]}  Ra6 {[%clk 0:02:14]} 19. Nd2 {[%clk 0:00:21]}  Qe7 {[%clk 0:01:46]} 20. Qa3 {[%clk 0:00:18]}  Bd7 {[%clk 0:01:34]} 21. O-O {[%clk 0:00:14]}  g5 {[%clk 0:01:09]} 22. hxg5 {[%clk 0:00:14]}  fxg5 {[%clk 0:01:10]} 23. Rb3 {[%clk 0:00:14]}  Nc8 {[%clk 0:01:07]} 24. Rfb1 {[%clk 0:00:13]}  b6 {[%clk 0:01:07]} 25. Nf1 {[%clk 0:00:10]}  g4 {[%clk 0:01:05]} 26. f4 {[%clk 0:00:09]}  exf4 {[%clk 0:01:03]} 27. Bxf4 {[%clk 0:00:09]}  Nf7 {[%clk 0:01:02]} 28. Ne3 {[%clk 0:00:06]}  Qxe4 {[%clk 0:00:53]} 29. Rf1 {[%clk 0:00:05]}  h4 {[%clk 0:00:53]} 30. Qc1 {[%clk 0:00:05]}  h3 {[%clk 0:00:53]} 31. Qd2 {[%clk 0:00:04]}  hxg2 {[%clk 0:00:47]} 32. Nxg2 {[%clk 0:00:05]}  Ne5 {[%clk 0:00:48]} 33. Qe3 {[%clk 0:00:05]}  Qxe3+ {[%clk 0:00:38]} 34. Nxe3 {[%clk 0:00:06]}  Re8 {[%clk 0:00:38]} 35. Bg3 {[%clk 0:00:04]}  Bxa4 {[%clk 0:00:37]} 36. Ra3 {[%clk 0:00:04]}  Bd7 {[%clk 0:00:37]} 37. Rf6 {[%clk 0:00:04]}  Nf3+ {[%clk 0:00:29]} 38. Kf2 {[%clk 0:00:04]}  Nd2 {[%clk 0:00:30]} 39. Bd3 {[%clk 0:00:04]}  Ne4+ {[%clk 0:00:24]} 40. Bxe4 {[%clk 0:00:04]}  Rxe4 {[%clk 0:00:25]} 41. Rf7 {[%clk 0:00:04]}  Re7 {[%clk 0:00:24]} 42. Rf6 {[%clk 0:00:04]}  a4 {[%clk 0:00:23]} 43. Ng2 {[%clk 0:00:04]}  Re4 {[%clk 0:00:22]} 44. Ne3 {[%clk 0:00:04]}  b5 {[%clk 0:00:18]} 45. cxb5 {[%clk 0:00:04]}  Bxb5 {[%clk 0:00:19]} 46. Rf7+ {[%clk 0:00:04]}  Bd7 {[%clk 0:00:18]} 47. Nf5 {[%clk 0:00:04]}  Rb6 {[%clk 0:00:17]} 48. Ra2 {[%clk 0:00:05]}  Rb3 {[%clk 0:00:18]} 49. Ng7 {[%clk 0:00:04]}  a3 {[%clk 0:00:05]} 50. Ne6+ {[%clk 0:00:04]}  Kb6 {[%clk 0:00:05]} 51. Ra1 {[%clk 0:00:04]}  Rb2+ {[%clk 0:00:06]} 52. Kg1 {[%clk 0:00:04]}  Bb5 {[%clk 0:00:05]} 53. Rf8 {[%clk 0:00:03]}  Na7 {[%clk 0:00:03]} 54. Rb8+ {[%clk 0:00:03]}  Ka5 {[%clk 0:00:03]} 55. Ra8 {[%clk 0:00:03]}  Kb6 {[%clk 0:00:03]} 56. Rb8+ {[%clk 0:00:03]}  Ka5 {[%clk 0:00:03]} 57. Rxa3+ {[%clk 0:00:04]}  Ra4 {[%clk 0:00:03]} 58. Rxa4+ {[%clk 0:00:04]}  Kxa4 {[%clk 0:00:04]} 59. c4 {[%clk 0:00:04]}  Rb1+ {[%clk 0:00:03]} 60. Kg2 {[%clk 0:00:05]}  Rb2+ {[%clk 0:00:04]} 61. Bf2 {[%clk 0:00:05]}  g3 {[%clk 0:00:02]} 62. Kxg3 {[%clk 0:00:05]}  Rb3+ {[%clk 0:00:03]} 63. Kh4 {[%clk 0:00:05]}  Bxc4 {[%clk 0:00:03]} 64. Ra8 {[%clk 0:00:05]}  Rb7 {[%clk 0:00:04]} 65. Nxc5+ {[%clk 0:00:05]}  dxc5 {[%clk 0:00:01]} 66. Bxc5 {[%clk 0:00:06]}  Rh7+ {[%clk 0:00:02]} 67. Kg5 {[%clk 0:00:06]}  Kb5 {[%clk 0:00:02]} 68. Rxa7 {[%clk 0:00:06]}  Rxa7 {[%clk 0:00:01]} 69. Bxa7 {[%clk 0:00:07]}  Bxd5 {[%clk 0:00:02]} 1/2-1/2


[Site "https://www.chess.com"]

[Event "Titled Tuesday Blitz November 29 Early 2022"]
[White "Dehtiarov, Roman"]
[Black "Blokhin, Sofia"]
[WhiteFideId "14186640"]
[BlackFideId "4508190"]
[WhiteElo "2200"]
[BlackElo "2005"]
[Result "1-0"]
[Round "05"]
[TimeControl "180+1"]
[Date "2022.11.30"]
[WhiteClock "0:01:21"]
[BlackClock "0:00:06"]

1. e4 {[%clk 0:03:00]}  c5 {[%clk 0:02:57]} 2. Nc3 {[%clk 0:03:00]}  e6 {[%clk 0:02:56]} 3. f4 {[%clk 0:03:01]}  d5 {[%clk 0:02:54]} 4. Nf3 {[%clk 0:03:01]}  d4 {[%clk 0:02:54]} 5. Bb5+ {[%clk 0:03:01]}  Bd7 {[%clk 0:02:52]} 6. Bxd7+ {[%clk 0:03:01]}  Nxd7 {[%clk 0:02:51]} 7. Nb1 {[%clk 0:03:01]}  Qc7 {[%clk 0:02:38]} 8. d3 {[%clk 0:03:01]}  e5 {[%clk 0:02:31]} 9. fxe5 {[%clk 0:02:58]}  Nxe5 {[%clk 0:02:32]} 10. O-O {[%clk 0:02:57]}  Bd6 {[%clk 0:02:29]} 11. g3 {[%clk 0:02:23]}  Nf6 {[%clk 0:02:24]} 12. Nbd2 {[%clk 0:02:20]}  b5 {[%clk 0:02:20]} 13. a4 {[%clk 0:02:19]}  bxa4 {[%clk 0:02:08]} 14. Nxe5 {[%clk 0:02:15]}  Bxe5 {[%clk 0:02:06]} 15. Qf3 {[%clk 0:02:16]}  Rb8 {[%clk 0:01:58]} 16. Nc4 {[%clk 0:02:15]}  Rb4 {[%clk 0:01:34]} 17. Bd2 {[%clk 0:02:12]}  Rxc4 {[%clk 0:01:24]} 18. dxc4 {[%clk 0:02:11]}  Qc6 {[%clk 0:01:19]} 19. Bf4 {[%clk 0:02:04]}  Bxf4 {[%clk 0:00:54]} 20. Qxf4 {[%clk 0:01:56]}  O-O {[%clk 0:00:50]} 21. e5 {[%clk 0:01:52]}  Nd7 {[%clk 0:00:38]} 22. Rae1 {[%clk 0:01:51]}  Qe6 {[%clk 0:00:36]} 23. Qf5 {[%clk 0:01:45]}  Re8 {[%clk 0:00:28]} 24. Qxe6 {[%clk 0:01:45]}  Rxe6 {[%clk 0:00:27]} 25. Ra1 {[%clk 0:01:45]}  Ra6 {[%clk 0:00:13]} 26. b3 {[%clk 0:01:45]}  a3 {[%clk 0:00:11]} 27. Ra2 {[%clk 0:01:45]}  Nxe5 {[%clk 0:00:09]} 28. Rfa1 {[%clk 0:01:45]}  d3 {[%clk 0:00:09]} 29. cxd3 {[%clk 0:01:44]}  Nxd3 {[%clk 0:00:09]} 30. Rxa3 {[%clk 0:01:44]}  Re6 {[%clk 0:00:08]} 31. Rxa7 {[%clk 0:01:39]}  h6 {[%clk 0:00:08]} 32. Rf1 {[%clk 0:01:36]}  Re2 {[%clk 0:00:07]} 33. Rfxf7 {[%clk 0:01:30]}  Rb2 {[%clk 0:00:07]} 34. Rxg7+ {[%clk 0:01:30]}  Kf8 {[%clk 0:00:08]} 35. Rgf7+ {[%clk 0:01:30]}  Ke8 {[%clk 0:00:08]} 36. Rae7+ {[%clk 0:01:29]}  Kd8 {[%clk 0:00:08]} 37. Rd7+ {[%clk 0:01:30]}  Ke8 {[%clk 0:00:08]} 38. Rxd3 {[%clk 0:01:31]}  Kxf7 {[%clk 0:00:08]} 39. Rd5 {[%clk 0:01:30]}  Rxb3 {[%clk 0:00:08]} 40. Kg2 {[%clk 0:01:31]}  Rc3 {[%clk 0:00:07]} 41. Rxc5 {[%clk 0:01:30]}  Ke6 {[%clk 0:00:05]} 42. Rc6+ {[%clk 0:01:30]}  Kf5 {[%clk 0:00:05]} 43. Rxh6 {[%clk 0:01:31]}  Rxc4 {[%clk 0:00:05]} 44. Kh3 {[%clk 0:01:30]}  Rc3 {[%clk 0:00:05]} 45. Ra6 {[%clk 0:01:30]}  Rc2 {[%clk 0:00:05]} 46. Ra5+ {[%clk 0:01:31]}  Kg6 {[%clk 0:00:06]} 47. g4 {[%clk 0:01:30]}  Rc3+ {[%clk 0:00:06]} 48. Kh4 {[%clk 0:01:31]}  Rc2 {[%clk 0:00:06]} 49. h3 {[%clk 0:01:30]}  Rc6 {[%clk 0:00:06]} 50. Rg5+ {[%clk 0:01:28]}  Kh6 {[%clk 0:00:06]} 51. Ra5 {[%clk 0:01:26]}  Kg6 {[%clk 0:00:05]} 52. Ra3 {[%clk 0:01:27]}  Kh6 {[%clk 0:00:05]} 53. Kg3 {[%clk 0:01:27]}  Kg6 {[%clk 0:00:06]} 54. h4 {[%clk 0:01:28]}  Kh6 {[%clk 0:00:06]} 55. Rb3 {[%clk 0:01:28]}  Kg6 {[%clk 0:00:06]} 56. h5+ {[%clk 0:01:29]}  Kh6 {[%clk 0:00:05]} 57. Kh4 {[%clk 0:01:29]}  Rc4 {[%clk 0:00:05]} 58. Rb6+ {[%clk 0:01:30]}  Kg7 {[%clk 0:00:05]} 59. h6+ {[%clk 0:01:24]}  Kh7 {[%clk 0:00:05]} 60. Kh5 {[%clk 0:01:24]}  Rc5+ {[%clk 0:00:04]} 61. g5 {[%clk 0:01:24]}  Rd5 {[%clk 0:00:04]} 62. Rb7+ {[%clk 0:01:24]}  Kg8 {[%clk 0:00:04]} 63. Kg4 {[%clk 0:01:24]}  Rd4+ {[%clk 0:00:03]} 64. Kf5 {[%clk 0:01:24]}  Rd5+ {[%clk 0:00:03]} 65. Kf6 {[%clk 0:01:24]}  Rd6+ {[%clk 0:00:04]} 66. Ke5 {[%clk 0:01:24]}  Ra6 {[%clk 0:00:03]} 67. Rd7 {[%clk 0:01:23]}  Ra5+ {[%clk 0:00:04]} 68. Kf4 {[%clk 0:01:22]}  Ra4+ {[%clk 0:00:04]} 69. Kf5 {[%clk 0:01:22]}  Ra5+ {[%clk 0:00:05]} 70. Kg4 {[%clk 0:01:23]}  Ra4+ {[%clk 0:00:05]} 71. Kh5 {[%clk 0:01:23]}  Ra5 {[%clk 0:00:06]} 72. Re7 {[%clk 0:01:20]}  Rb5 {[%clk 0:00:05]} 73. Kg6 {[%clk 0:01:19]}  Rb6+ {[%clk 0:00:06]} 74. Kf5 {[%clk 0:01:19]}  Rb5+ {[%clk 0:00:06]} 75. Kf6 {[%clk 0:01:19]}  Rb6+ {[%clk 0:00:06]} 76. Re6 {[%clk 0:01:20]}  Rb5 {[%clk 0:00:06]} 77. Re8+ {[%clk 0:01:19]}  Kh7 {[%clk 0:00:06]} 78. g6+ {[%clk 0:01:20]}  Kxh6 {[%clk 0:00:06]} 79. Rh8# {[%clk 0:01:21]} 1-0


[Site "https://www.chess.com"]